Cogmind - Beta 13 @@@ ROGUE MODE // 2024.05.06 @ 12:28:30 Player: Lunace Result: Destroyed by S-43 Plague with Heavy Machine Gun Performance ------------- Evolutions (8) 4000 Regions Visited (17) 3400 Robots Destroyed (221) 1105 Value Destroyed (14152) 14152 Prototype IDs (40) 800 Alien Tech Used (0) 0 Bonus (8733) 8733 TOTAL SCORE: 32190 Bonus ------- High Alert Combat Kills 2924 Follower Combat Kills 2905 Entered Garrisons 1000 Used RIF Installer 2500 Aligned with FarCom 300 Friendly Fire -896 Cogmind --------- Core Integrity 0/1450 Matter 191/300 Energy 83/100 System Corruption 6% Temperature Cool (0) Movement Core (50) Location -2/Garrison Parts ------- > --- POWER (2) -------- (None) > --- PROPULSION (4) --- (None) > --- UTILITY (15) ----- Relay Coupler [Hunter] (26) > --- WEAPON (2) ------- (None) > --- INVENTORY (5) ---- Light Antimatter Reactor Compact Wheel Advanced ECM Suite Heavy Disruptor Cannon Peak State ------------ > --- POWER ------------ Micro Antimatter Reactor > --- PROPULSION ------- Improved Heavy Treads Armored Heavy Treads > --- UTILITY ---------- Huge Storage Unit Improved Signal Interpreter Centrium Light Armor Plating Relay Coupler [NC] Relay Coupler [Brawler] Relay Coupler [Duelist] Relay Coupler [Sentry] Relay Coupler [Demolisher] Relay Coupler [Specialist] Relay Coupler [Hunter] Relay Coupler [Heavy] Relay Coupler [Proto] > --- WEAPON ----------- Compact Linear Accelerator Remote Datajack > --- INVENTORY -------- Improved Heavy Siege Treads Energy Well Enhanced Optical Array Advanced Terrain Scanner Improved Medium Armor Plating Experimental System Shield Relay Coupler [Grunt] Relay Coupler [Grunt] Relay Coupler [Hunter] Relay Coupler [Hunter] Nova Cannon Linear Accelerator Mini Smartbomb Launcher Fusion Bomb Launcher Improved Plasma Cutter Enhanced Force Lance [Rating: 116] Favorites ----------- Power Improved Deuterium Engine Engine Improved Deuterium Engine Power Core Nuclear Core Reactor Particle Reactor Propulsion Improved Heavy Treads Treads Improved Heavy Treads Leg Carbon-fiber Leg Wheel Wheel Hover Unit Antigrav System Flight Unit Q-thruster Utility Huge Storage Unit Device Graphene Brace Storage Huge Storage Unit Processor Improved Signal Interpreter Hackware Relay Coupler [Grunt] Protection Hardened Medium Armor Plating Weapon Remote Datajack Energy Gun AWS/Thermal Energy Cannon Nova Cannon Ballistic Gun Railgun Ballistic Cannon Compact Linear Accelerator Launcher Mini Smartbomb Launcher Special Weapon Remote Datajack Slashing Weapon Great Axe Piercing Weapon Enhanced Force Lance Special Melee Weapon Advanced Datajack Build | -11 -10 -10 -10 -9 -8 -8 -7 -7 -7 -6 -6 -5 -5 -4 -3 -2 -2 ------- Run | Yrd Mat Min Exi Min Mat Gar Fac Gar Fac Fac Gar Fac Gar Fac Res Res Gar Slots Evolved 16 | . . . . . 4 . 2 . . 2 . 2 . 2 2 2 . Power 1 | . . . . . . . . . . . . . . . 1 . . Propulsion 2 | . . . . . . . 2 . . . . . . . . . . Utility 13 | . . . . . 4 . . . . 2 . 2 . 2 1 2 . Weapon . | . . . . . . . . . . . . . . . . . . Parts Attached 324 | 7 6 . 3 . 33 45 11 46 66 1 34 10 14 21 7 18 2 Power 22 | 1 . . 1 . 2 2 1 3 5 . 2 . 1 1 . 2 1 Engine 14 | 1 . . 1 . 1 2 1 2 5 . 1 . . . . . . Core 2 | . . . . . 1 . . 1 . . . . . . . . . Reactor 6 | . . . . . . . . . . . 1 . 1 1 . 2 1 Propulsion 51 | 2 . . . . 5 5 3 12 2 . 9 . 1 4 4 4 . Treads 35 | 2 . . . . 3 5 2 12 2 . 5 . 1 2 1 . . Leg 4 | . . . . . . . . . . . 4 . . . . . . Wheel 6 | . . . . . 2 . 1 . . . . . . . . 3 . Hover 4 | . . . . . . . . . . . . . . 2 1 1 . Flight 2 | . . . . . . . . . . . . . . . 2 . . Utility 136 | 2 1 . 1 . 19 14 3 15 30 1 9 8 10 13 1 9 . Device 31 | 1 1 . . . 3 4 . 2 8 1 . 2 . 1 1 7 . Storage 7 | 1 . . 1 . 3 . . . 1 . . . . . . 1 . Processor 7 | . . . . . 2 . . . 3 . . . . 1 . 1 . Hackware 67 | . . . . . 2 8 2 10 17 . 6 5 9 8 . . . Protection 24 | . . . . . 9 2 1 3 1 . 3 1 1 3 . . . Artifact . | . . . . . . . . . . . . . . . . . . Weapon 115 | 2 5 . 1 . 7 24 4 16 29 . 14 2 2 3 2 3 1 Energy Gun 14 | 2 . . . . 5 5 . 1 1 . . . . . . . . Energy Cannon 2 | . . . . . . . . . . . 1 . . . . . 1 Ballistic Gun 27 | . . . 1 . 2 5 1 4 11 . 3 . . . . . . Ballistic Cannon 9 | . 3 . . . . . . 1 . . 2 1 . . 1 1 . Launcher 26 | . 2 . . . . 5 1 2 9 . 3 1 . 1 1 1 . Special Weapon 24 | . . . . . . 4 1 4 8 . 4 . 1 1 . 1 . Impact Weapon . | . . . . . . . . . . . . . . . . . . Slashing Weapon 9 | . . . . . . 5 1 3 . . . . . . . . . Piercing Weapon 3 | . . . . . . . . . . . 1 . 1 1 . . . Special Melee Weapon 1 | . . . . . . . . 1 . . . . . . . . . Unidentified Prototypes 10 | . . . . . 1 . . . 5 . 2 1 . 1 . . . Parts Lost 73 | . . . . . 2 5 . 4 3 . 14 . 1 18 10 6 10 Power 7 | . . . . . . 1 . . 1 . 1 . 1 . . 2 1 Propulsion 22 | . . . . . . 2 . 2 . . 5 . . 4 4 3 2 Utility 32 | . . . . . 2 2 . 1 2 . 4 . . 10 5 1 5 Weapon 12 | . . . . . . . . 1 . . 4 . . 4 1 . 2 Highest Loss Streak 14 | . . . . . 1 1 . 3 2 . 8 . 1 12 5 4 14 To Critical Strikes . | . . . . . . . . . . . . . . . . . . Average Slot Usage (%) 83 | . 100 100 88 85 87 87 83 93 77 73 68 85 84 85 38 72 32 Engine 5 | . 14 14 14 14 5 8 7 6 6 6 2 . . . . . . Reactor 1 | . . . . . . . . . . . 2 5 5 4 . 3 . Treads 13 | . 28 28 28 28 3 8 15 27 14 13 9 11 11 8 2 3 . Wheel 3 | . . . . . 14 9 1 . . . . . . . . 11 1 Device 6 | . 14 14 14 14 6 15 5 1 2 6 1 . . . . 30 13 Storage 7 | . 14 14 14 14 9 9 7 7 7 6 6 5 5 4 . 3 1 Processor 7 | . . . . . 9 9 7 7 4 13 13 11 7 5 6 6 4 Hackware 17 | . . . . . 8 7 21 22 20 6 6 21 39 48 18 4 4 Protection 5 | . . . . . 19 8 2 3 3 6 8 15 1 . . . . Energy Gun 1 | . 13 . . . 2 2 . . . . . . . . . . . Ballistic Gun 3 | . . . . 14 6 1 . 7 8 6 2 . . . . . . Ballistic Cannon 1 | . 9 14 8 . . . . . . . 2 5 5 4 1 2 . Launcher 1 | . 5 14 8 . . . 3 . . . 1 . . . . 2 1 Special Weapon 3 | . . . . . . 5 6 2 4 6 4 5 4 3 . . . Naked Turns . | . . . . . . . . . . . . . . . . . . Heaviest Build 131 | 15 20 19 27 27 131 123 108 119 119 116 130 127 118 109 12 68 34 Greatest Support 150 | 40 40 40 40 40 40 57 113 150 150 150 150 135 135 135 16 42 16 Greatest Overweight (x) 32 | . . . . . 6 12 6 3 . . 32 . . 1 . 3 2 Average Overweight (x) 1 | . . . . . 3 7 2 . . . . . . . . . . Largest Inventory Capacity 25 | 8 8 8 10 10 25 25 25 25 25 25 25 25 25 25 5 5 5 Average Capacity 22 | 7 8 8 9 10 19 25 25 25 25 25 25 25 25 24 5 5 5 Most Carried 25 | 1 8 8 10 8 22 25 25 25 25 16 25 21 25 20 5 5 5 Average Carried 18 | . 6 8 8 8 13 24 24 21 22 16 15 18 22 16 4 2 4 Final Capacity 25 | 8 8 8 10 10 25 25 25 25 25 25 25 25 25 5 5 5 5 Final Carried 25 | 1 8 8 8 8 21 25 21 24 17 16 22 16 20 5 5 4 5 Class Distribution -------------------- 45% | Bothacker-Mutant 22% | Botlord-Mutant 19% | Mutant 9% | Scavenger-Mutant Dominant Class ---------------- Mutant | -10/Materials Mutant | -10/Mines Mutant | -10/Exiles Mutant | -9/Mines Scavenger-Mutant | -8/Materials Bothacker-Mutant | -8/Garrison Bothacker-Mutant | -7/Factory Bothacker-Mutant | -7/Garrison Bothacker-Mutant | -7/Factory Bothacker-Mutant | -6/Factory Botlord-Mutant | -6/Garrison Botlord-Mutant | -5/Factory Botlord-Mutant | -5/Garrison Botlord-Mutant | -4/Factory Mutant | -3/Research Infiltrator-Mutant | -2/Research Mutant | -2/Garrison Resources | -11 -10 -10 -10 -9 -8 -8 -7 -7 -7 -6 -6 -5 -5 -4 -3 -2 -2 ----------- Run | Yrd Mat Min Exi Min Mat Gar Fac Gar Fac Fac Gar Fac Gar Fac Res Res Gar Matter Collected 7408 | 245 145 57 71 . 354 834 110 1007 1766 . 1238 218 537 324 241 90 171 Remotely . | . . . . . . . . . . . . . . . . . . Salvage Created 8194 | 40 106 40 . . 1502 1035 81 1095 1745 . 956 234 484 526 96 83 171 Parts 439 | 2 15 11 . . 75 77 4 41 102 . 49 4 15 27 3 7 7 Haulers Intercepted . | . . . . . . . . . . . . . . . . . . Recyclers Shooed 1 | . . . . . . . . . 1 . . . . . . . . Parts Field Recycled . | . . . . . . . . . . . . . . . . . . Retrieved Matter . | . . . . . . . . . . . . . . . . . . Parts Self-Destructed . | . . . . . . . . . . . . . . . . . . Prevented . | . . . . . . . . . . . . . . . . . . Kills | -11 -10 -10 -10 -9 -8 -8 -7 -7 -7 -6 -6 -5 -5 -4 -3 -2 -2 ------- Run | Yrd Mat Min Exi Min Mat Gar Fac Gar Fac Fac Gar Fac Gar Fac Res Res Gar Combat Hostiles Destroyed 179 | . 8 5 . . 25 35 . 13 41 . 23 . 3 16 2 4 4 Melee 2 | . . . . . . . . . 1 . 1 . . . . . . Guns 73 | . . . . . 25 21 . 5 18 . 4 . . . . . . Cannons 18 | . 1 . . . . . . . . . 2 . 3 11 . 1 . AOE 84 | . 7 5 . . . 14 . 8 22 . 15 . . 5 2 3 3 Classes Destroyed 20 | 1 6 . . . 3 4 1 1 2 . 1 . . 1 . . . Worker 9 | . 1 . . . 2 . . . 5 . . . . 1 . . . Builder 8 | . 1 . . . 1 . . . 5 . . . . . 1 . . Tunneler 4 | 2 . . . . . . 1 . 1 . . . . . . . . Recycler 5 | . . . . . . . 1 . 1 . . 2 . 1 . . . Mechanic 3 | . 1 . . . . . . . 2 . . . . . . . . Operator 1 | . . . . . . . . . . . . . . 1 . . . Watcher 9 | . 2 . . . 4 1 . . 2 . . . . . . . . Swarmer 50 | . 6 5 . . . 11 . 5 5 . 4 . . 7 . 4 3 Cutter 7 | . . . . . . 3 . 1 3 . . . . . . . . Grunt 61 | . 2 . . . 13 6 . 5 20 . 8 . . 5 2 . . Brawler 2 | . . . . . . . . 1 1 . . . . . . . . Duelist 5 | . . . . . . . . . 3 . 2 . . . . . . Protector 2 | . . . . . . . . . 1 . . . . 1 . . . Sentry 19 | . . . . . 9 4 . 1 3 . 1 . . . . . 1 Specialist 10 | . . . . . . 4 . . 3 . 3 . . . . . . Hunter 8 | . . . . . 2 3 . . 1 . . . 2 . . . . Programmer 11 | . . . . . . 3 . . 3 . 2 . . 3 . . . Heavy 2 | . . . . . 1 . . . 1 . . . . . . . . Behemoth 3 | . . . . . . 1 . . . . 1 . 1 . . . . Striker 2 | . . . . . . . . . . . 2 . . . . . . Best Kill Streak 10 | 2 6 3 . . 10 7 2 6 9 . 7 2 2 10 3 4 3 Combat Bots Only 10 | . 3 3 . . 6 7 . 6 7 . 7 . 2 10 2 4 3 Max Kills in Single Turn 5 | 2 2 3 . . 2 4 1 3 5 . 3 1 1 4 3 3 3 Gunslinging . | . . . . . . . . . . . . . . . . . . Exploded 4 | . 2 3 . . . 4 . 3 4 . 3 . . 4 2 3 3 Melee 1 | . . . . . . . . . 1 . 1 . . . . . . Uniques/NPCs Destroyed . | . . . . . . . . . . . . . . . . . . Combat | -11 -10 -10 -10 -9 -8 -8 -7 -7 -7 -6 -6 -5 -5 -4 -3 -2 -2 -------- Run | Yrd Mat Min Exi Min Mat Gar Fac Gar Fac Fac Gar Fac Gar Fac Res Res Gar Hostile Shots Fired 1465 | . 33 2 . . 64 110 6 261 219 . 216 12 59 187 140 42 114 Missed 487 | . 6 1 . . 15 35 3 98 75 . 68 4 13 47 70 8 44 Damage Taken 18505 | . 217 24 . . 842 1163 38 1634 2460 . 3684 239 1164 2879 1405 760 1996 Core 4762 | . 29 . . . 78 180 12 157 151 . 695 23 128 1046 802 88 1373 Absorbed by Shields 444 | . 88 11 . . 88 . . 111 54 . 64 . . . . . 28 Reduced by Siege Mode 66 | . . . . . . . . . . . . . . 66 . . . Regen/Repaired (Parts) 1357 | . . . . . 53 . . . 1304 . . . . . . . . Core Remaining (%) 55 | 100 . . . 88 . 53 . . 54 . 18 . 84 9 38 . . Volleys Fired 552 | 1 26 2 . . . 54 4 84 145 . 76 24 56 49 8 18 5 Largest 2 | 2 2 1 . . . 1 1 2 2 . 2 1 1 1 1 1 1 Hottest 179 | 90 78 30 . . . 46 5 70 80 . 179 70 70 70 66 80 110 Shots Fired 885 | 2 32 2 . . 142 156 4 105 180 . 102 24 56 49 8 18 5 Gun 470 | 2 . . . . 142 111 . 60 103 . 52 . . . . . . Cannon 144 | . 27 . . . . . . . . . 26 6 29 30 5 17 4 Launcher 69 | . 5 2 . . . 17 . 6 18 . 12 . . 4 3 1 1 Special 202 | . . . . . . 28 4 39 59 . 12 18 27 15 . . . Kinetic 503 | . 27 . . . 113 42 . 56 103 . 75 6 29 30 5 17 . Thermal 113 | 1 . . . . 29 76 . 4 . . 3 . . . . . . Explosive 69 | . 5 2 . . . 17 . 6 18 . 12 . . 4 3 1 1 Electromagnetic 5 | 1 . . . . . . . . . . . . . . . . 4 Robot Hit Streak 27 | 1 4 . . . 17 27 5 16 11 . 12 8 14 10 4 2 5 Robot Miss Streak 6 | . 5 2 . . 3 4 . 6 3 . 4 2 3 2 2 3 . Penetration Max 2 | . . . . . 2 . . 1 1 . . . . . . . . Secondary Targets 3 | . . . . . . . . . 2 . 1 . . . . . . Max Gunslinging Chain 1 | . . . . . . . . . 1 . 1 . . . . . . Autonomous 252 | . . . . . 145 103 . 4 . . . . . . . . . Shots Hit Robots 655 | 1 16 . . . 122 101 6 102 125 . 69 18 43 37 3 7 5 Core Hits 358 | 2 16 7 . . 44 42 . 40 98 . 54 3 7 28 8 4 5 Critical Kills 2 | . . . . . . 1 . . . . 1 . . . . . . Critical Parts Destroyed 4 | . . . . . 2 . . 1 . . 1 . . . . . . Critical Strikes 16 | . 1 . . . 2 1 . 2 1 . 5 . 2 2 . . . Meltdown 1 | . . . . . . . . . . . 1 . . . . . . Destroy 6 | . . . . . 2 1 . 1 1 . 1 . . . . . . Blast 5 | . 1 . . . . . . . . . 1 . 1 2 . . . Sever 1 | . . . . . . . . 1 . . . . . . . . . Impale 3 | . . . . . . . . . . . 2 . 1 . . . . Melee Attacks 73 | . . . . . . 14 2 37 . . 6 . 11 3 . . . Impact . | . . . . . . . . . . . . . . . . . . Slashing 48 | . . . . . . 14 2 32 . . . . . . . . . Piercing 20 | . . . . . . . . . . . 6 . 11 3 . . . Sneak Attacks 2 | . . . . . . . 2 . . . . . . . . . . Combat Hostiles . | . . . . . . . . . . . . . . . . . . Follow-up Attacks . | . . . . . . . . . . . . . . . . . . Damage Inflicted 29009 | 27 896 182 . . 3633 3575 186 4428 6329 . 3783 156 1437 2744 699 602 332 Guns 9832 | 27 . . . . 3633 1992 . 1084 2102 . 994 . . . . . . Cannons 2823 | . 364 . . . . . . . . . 460 156 364 1018 67 278 116 Explosions 12502 | . 532 182 . . . 1583 . 1033 4225 . 2123 . . 1663 632 324 205 Melee 3825 | . . . . . . . 186 2303 . . 206 . 1073 57 . . . Ramming 27 | . . . . . . . . 8 2 . . . . 6 . . 11 Kinetic 10353 | . 364 . . . 2819 853 . 955 2102 . 1377 156 364 1018 67 278 . Thermal 2936 | 12 . . . . 814 1139 . 129 376 . 77 . . 389 . . . Explosive 11737 | . 532 182 . . . 1583 . 1033 3849 . 2123 . . 1274 632 324 205 Electromagnetic 131 | 15 . . . . . . . . . . . . . . . . 116 Impact . | . . . . . . . . . . . . . . . . . . Slashing 2489 | . . . . . . . 186 2303 . . . . . . . . . Piercing 1336 | . . . . . . . . . . . 206 . 1073 57 . . . Highest Corruption 6 | . . . . . 2 6 . 1 1 . . . . 1 . . 6 Average Corruption 1 | . . . . . 1 2 . 1 1 . . . . 1 . . 2 Corruption Purged 3 | . . . . . . . . . 3 . . . . . . . . Corruption Blocked 5 | . . . . . . . . . . . 5 . . . . . . Effects 57 | . . . . . 10 32 . 5 8 . . . . . . . 2 Message Errors 17 | . . . . . 2 6 . 4 5 . . . . . . . . Matter Fused 5 | . . . . . 2 2 . . . . . . . . . . 1 Heat Flow Errors 7 | . . . . . 2 4 . . 1 . . . . . . . . Energy Discharges 9 | . . . . . 2 6 . 1 . . . . . . . . . Parts Rejected 2 | . . . . . . 1 . . 1 . . . . . . . . Data Loss (minor) 11 | . . . . . 1 8 . . 1 . . . . . . . 1 Data Loss (major) 4 | . . . . . 1 3 . . . . . . . . . . . Alerts 2 | . . . . . . 2 . . . . . . . . . . . Overload Shots . | . . . . . . . . . . . . . . . . . . Overflow Damage 684 | . 45 . . . . 12 116 15 158 . 23 9 . 216 35 55 . Projectiles 41 | . 4 . . . . . . . . . . 9 . 28 . . . Explosions 503 | . 41 . . . . 12 . . 158 . 14 . . 188 35 55 . Melee 140 | . . . . . . . 116 15 . . 9 . . . . . . Knockbacks 22 | . 2 . . . . . . . . . 5 1 2 9 2 1 . Impact . | . . . . . . . . . . . . . . . . . . Kinetic 22 | . 2 . . . . . . . . . 5 1 2 9 2 1 . Secondary . | . . . . . . . . . . . . . . . . . . Self-Inflicted Damage 368 | . . 27 . . . 15 . . . . 253 . . 3 65 . 5 Shots 8 | . . 1 . . . 1 . . . . 4 . . . 2 . . Rammed 3 | . . . . . . . . 1 . . . . . 1 . . 1 Targets Rammed 4 | . . . . . . . . 1 1 . . . . 1 . . 1 Kicked . | . . . . . . . . . . . . . . . . . . Crushed 1 | . . . . . . . . . 1 . . . . . . . . Highest Temperature 378 | 30 168 . . . 261 275 . 112 146 . 344 110 378 68 25 83 39 Average Temperature 60 | 18 80 . . . 127 79 . 30 47 . 80 62 60 14 18 42 23 Received Heat Transfer 3678 | . 84 . . . 178 171 9 467 562 . 897 36 498 391 183 54 148 Effects 3 | . . . . . . . . . . . 2 . 1 . . . . Shutdowns 1 | . . . . . . . . . . . 1 . . . . . . Interference 2 | . . . . . . . . . . . 1 . 1 . . . . Siege Activations 1 | . . . . . . . . . . . . . . 1 . . . Total Turns 13 | . . . . . . . . . . . . . . 13 . . . Longest Duration 13 | . . . . . . . . . . . . . . 13 . . . Robots Corrupted 1 | . . . . . . . . . . . . . . . . . 1 Combat Hostiles 1 | . . . . . . . . . . . . . . . . . 1 Parts Fried . | . . . . . . . . . . . . . . . . . . Impact Corruptions . | . . . . . . . . . . . . . . . . . . Robots Melted 1 | . . . . . . . . . . . 1 . . . . . . Combat Hostiles 1 | . . . . . . . . . . . 1 . . . . . . Parts Melted 7 | . . . . . 3 3 . . . . . . 1 . . . . Heat Transferred 3164 | 37 . . . . 999 1406 . 148 250 . 74 . . 250 . . . Parts Sabotaged . | . . . . . . . . . . . . . . . . . . Parts Stolen . | . . . . . . . . . . . . . . . . . . Parts Stripped . | . . . . . . . . . . . . . . . . . . Power Chain Reactions . | . . . . . . . . . . . . . . . . . . Alert | -11 -10 -10 -10 -9 -8 -8 -7 -7 -7 -6 -6 -5 -5 -4 -3 -2 -2 ------- Run | Yrd Mat Min Exi Min Mat Gar Fac Gar Fac Fac Gar Fac Gar Fac Res Res Gar Peak Influence 2190 | 10 200 217 . . 376 2190 1186 1858 1457 696 1389 746 1405 1191 739 591 450 Initial 1149 | . 6 78 . . . 237 1149 639 975 696 487 728 382 737 507 387 274 Average 833 | 1 55 190 . . 176 1285 1030 1324 601 696 901 695 964 896 614 491 375 Maximum Alert Level 5 | . 1 1 . . 1 5 4 5 4 2 4 3 4 4 3 2 2 Low Security (%) 10 | 100 90 41 . 100 52 . . . 5 . . . . . . . . Level 1 15 | . 9 58 . . 47 2 . . 40 . . . 2 . . 36 66 Level 2 16 | . . . . . . 13 . 6 16 100 18 58 23 20 70 63 33 Level 3 28 | . . . . . . 28 62 23 21 . 53 41 38 58 29 . . Level 4 18 | . . . . . . 13 37 30 15 . 27 . 35 20 . . . Level 5 11 | . . . . . . 41 . 39 . . . . . . . . . High Security . | . . . . . . . . . . . . . . . . . . Max Security . | . . . . . . . . . . . . . . . . . . Squads Dispatched 45 | . . . . . 3 . 1 . 19 . . 3 . 13 5 1 . Investigation 6 | . . . . . 1 . . . 2 . . 1 . . 1 1 . Extermination 6 | . . . . . . . 1 . 3 . . . . 2 . . . Reinforcement 19 | . . . . . 2 . . . 8 . . 1 . 4 4 . . Assault 6 | . . . . . . . . . 4 . . . . 2 . . . Garrison 8 | . . . . . . . . . 2 . . 1 . 5 . . . Intercept . | . . . . . . . . . . . . . . . . . . Searches Triggered . | . . . . . . . . . . . . . . . . . . Construction Impeded 3 | . . . . . . . . . 1 . . . . 1 1 . . Haulers Reinforced 1 | . . . . . . . . . 1 . . . . . . . . Active Scanning Responses . | . . . . . . . . . . . . . . . . . . Cargo Convoy Interrupts 1 | . . . . . . . . . 1 . . . . . . . . Alert ID Control Effect 30 | . . . . . . . . . 13 . 5 1 7 4 . . . Stealth | -11 -10 -10 -10 -9 -8 -8 -7 -7 -7 -6 -6 -5 -5 -4 -3 -2 -2 --------- Run | Yrd Mat Min Exi Min Mat Gar Fac Gar Fac Fac Gar Fac Gar Fac Res Res Gar Distress Signals 12 | . 2 . . . 4 1 1 . 1 . . . 1 1 1 . . Communications Jammed . | . . . . . . . . . . . . . . . . . . Distress Signals . | . . . . . . . . . . . . . . . . . . Times Spotted 413 | . 13 3 . . 28 40 8 52 84 . 40 10 46 42 21 12 14 Peak Tracking Total 15 | . 5 3 . . 6 5 3 14 11 . 7 4 6 9 15 5 9 Tactical Retreats 10 | . . . . . . . . 1 . . 2 . . 2 1 1 3 Traps | -11 -10 -10 -10 -9 -8 -8 -7 -7 -7 -6 -6 -5 -5 -4 -3 -2 -2 ------- Run | Yrd Mat Min Exi Min Mat Gar Fac Gar Fac Fac Gar Fac Gar Fac Res Res Gar Traps Triggered 17 | . . . . . 4 5 . 3 2 . 2 . . . . . 1 Indirectly . | . . . . . . . . . . . . . . . . . . Trap Hack Attempts . | . . . . . . . . . . . . . . . . . . Triggered . | . . . . . . . . . . . . . . . . . . Disarmed . | . . . . . . . . . . . . . . . . . . Reprogrammed . | . . . . . . . . . . . . . . . . . . Reused . | . . . . . . . . . . . . . . . . . . Traps Extracted . | . . . . . . . . . . . . . . . . . . Installed . | . . . . . . . . . . . . . . . . . . Triggered . | . . . . . . . . . . . . . . . . . . Machines | -11 -10 -10 -10 -9 -8 -8 -7 -7 -7 -6 -6 -5 -5 -4 -3 -2 -2 ---------- Run | Yrd Mat Min Exi Min Mat Gar Fac Gar Fac Fac Gar Fac Gar Fac Res Res Gar Machines Disabled 89 | . 1 . . . 3 14 . 14 32 . 8 . 8 8 1 . . Max in Single Turn 7 | . 1 . . . 1 2 . 3 7 . 1 . 2 4 1 . . Garrison Access 3 | . . . . . . . . . 1 . . . . 1 1 . . Garrison Relay 22 | . . . . . . 5 . 7 . . 4 . 5 . . . 1 Phase Generator 3 | . . . . . . 1 . 1 . . . . 1 . . . . Machines Repaired . | . . . . . . . . . . . . . . . . . . Machines Dismantled 1 | . . . . . . 1 . . . . . . . . . . . Machines Sabotaged . | . . . . . . . . . . . . . . . . . . Overloaded Fab Kills . | . . . . . . . . . . . . . . . . . . Hacking | -11 -10 -10 -10 -9 -8 -8 -7 -7 -7 -6 -6 -5 -5 -4 -3 -2 -2 --------- Run | Yrd Mat Min Exi Min Mat Gar Fac Gar Fac Fac Gar Fac Gar Fac Res Res Gar Machines Accessed 51 | . 5 . 2 . 12 2 4 . 7 1 1 3 2 5 2 4 1 Terminals 29 | . 3 . . . 10 2 . . 3 . 1 2 2 4 . 1 1 Fabricators 3 | . . . . . . . 1 . 1 . . . . . . 1 . Repair Stations 7 | . 1 . . . 1 . 1 . 2 . . . . 1 . 1 . Recycling Units 3 | . 1 . . . . . 1 . 1 . . . . . . . . Scanalyzers 1 | . . . . . . . . . . . . . . . 1 . . Garrison Access 6 | . . . . . 1 . 1 . . 1 . 1 . . 1 1 . Total Hacks 143 | . 18 . 2 . 44 4 8 . 23 2 2 7 3 11 6 9 4 Successful 74 | . 12 . 2 . 23 1 2 . 15 2 1 5 1 4 2 4 . Failed 69 | . 6 . . . 21 3 6 . 8 . 1 2 2 7 4 5 4 Catastrophic 17 | . . . . . 5 . 3 . . . . . . 2 2 3 2 Database Lockouts . | . . . . . . . . . . . . . . . . . . Manual 73 | . 11 . 1 . 30 . 2 . 8 . . 4 . 9 4 4 . Terminals 96 | . 15 . . . 40 4 . . 12 . 2 5 3 9 . 2 4 Fabricators 7 | . . . . . . . 4 . 1 . . . . . . 2 . Repair Stations 17 | . 1 . . . 3 . 2 . 6 . . . . 2 . 3 . Recycling Units 7 | . 2 . . . . . 1 . 4 . . . . . . . . Scanalyzers 2 | . . . . . . . . . . . . . . . 2 . . Garrison Access 12 | . . . . . 1 . 1 . . 2 . 2 . . 4 2 . Terminal Hacks 22 | . 5 . 2 . 8 1 . . 3 . 1 1 1 . . . . Record 1 | . . . 1 . . . . . . . . . . . . . . Robot Analysis 1 | . . . . . 1 . . . . . . . . . . . . Prototype ID Bank 2 | . 1 . . . 1 . . . . . . . . . . . . Open Door 2 | . . . . . . . . . . . 1 . 1 . . . . Branch Access Points 2 | . 1 . . . . . . . 1 . . . . . . . . Terminal Index 1 | . 1 . . . . . . . . . . . . . . . . Garrison Index 1 | . . . . . 1 . . . . . . . . . . . . Unreport Threat 3 | . . . . . . . . . 2 . . 1 . . . . . Locate Traps 2 | . 1 . . . 1 . . . . . . . . . . . . Dispatch Records 1 | . . . . . 1 . . . . . . . . . . . . Security Status 2 | . . . . . 2 . . . . . . . . . . . . Transport Status 1 | . 1 . . . . . . . . . . . . . . . . Zone Layout 1 | . . . . . 1 . . . . . . . . . . . . Security Stations 1 | . . . . . . 1 . . . . . . . . . . . Derelict Proto ID Bank 1 | . . . 1 . . . . . . . . . . . . . . Fabricator Hacks 2 | . . . . . . . . . 1 . . . . . . 1 . Network Status 2 | . . . . . . . . . 1 . . . . . . 1 . Repair Station Hacks 9 | . . . . . 2 . . . 4 . . . . 2 . 1 . Scan Component 4 | . . . . . 1 . . . 2 . . . . 1 . . . Repair 4 | . . . . . 1 . . . 2 . . . . 1 . . . Refit 1 | . . . . . . . . . . . . . . . . 1 . Recycling Unit Hacks 2 | . . . . . . . . . 2 . . . . . . . . Report Inventory 1 | . . . . . . . . . 1 . . . . . . . . Retrieve Components 1 | . . . . . . . . . 1 . . . . . . . . Scanalyzer . | . . . . . . . . . . . . . . . . . . Garrison Access Hacks 9 | . . . . . 1 . 1 . . 2 . 2 . . 2 1 . Unlock Access 5 | . . . . . 1 . 1 . . 1 . 1 . . . 1 . Seal Access 1 | . . . . . . . . . . . . . . . 1 . . Coupler Status 3 | . . . . . . . . . . 1 . 1 . . 1 . . Unauthorized Hacks 30 | . 7 . . . 12 . 1 . 5 . . 2 . 2 . 1 . Terminals 22 | . 4 . . . 11 . . . 2 . . 2 . 2 . 1 . Assimilate 2 | . . . . . 1 . . . . . . . . 1 . . . Botnet 18 | . 3 . . . 9 . . . 2 . . 2 . 1 . 1 . Operators 2 | . 1 . . . 1 . . . . . . . . . . . . Fabricators . | . . . . . . . . . . . . . . . . . . Repair Stations 4 | . 1 . . . 1 . 1 . 1 . . . . . . . . Mechanics 4 | . 1 . . . 1 . 1 . 1 . . . . . . . . Recycling Units 4 | . 2 . . . . . . . 2 . . . . . . . . Monitor 2 | . 1 . . . . . . . 1 . . . . . . . . Recyclers 2 | . 1 . . . . . . . 1 . . . . . . . . Scanalyzers . | . . . . . . . . . . . . . . . . . . Garrison Access . | . . . . . . . . . . . . . . . . . . Data Cores Recovered . | . . . . . . . . . . . . . . . . . . Used . | . . . . . . . . . . . . . . . . . . Hacking Detections 37 | . 3 . . . 8 2 4 . 4 1 . 3 1 4 2 4 1 Full Trace Events 3 | . . . . . . . . . . . . . . . 1 1 1 Feedback Events . | . . . . . . . . . . . . . . . . . . Feedback Blocked . | . . . . . . . . . . . . . . . . . . Robot Schematics Acquired . | . . . . . . . . . . . . . . . . . . Robots Built . | . . . . . . . . . . . . . . . . . . Authchips . | . . . . . . . . . . . . . . . . . . Time . | . . . . . . . . . . . . . . . . . . Total Robot Build Rating . | . . . . . . . . . . . . . . . . . . Part Schematics Acquired . | . . . . . . . . . . . . . . . . . . Parts Built . | . . . . . . . . . . . . . . . . . . Authchips . | . . . . . . . . . . . . . . . . . . Time . | . . . . . . . . . . . . . . . . . . Total Part Build Rating . | . . . . . . . . . . . . . . . . . . Parts Repaired 3 | . . . . . 1 . . . 2 . . . . . . . . Time 212 | . . . . . 38 . . . 106 . . . . 68 . . . Parts Recycled . | . . . . . . . . . . . . . . . . . . Recycled Matter . | . . . . . . . . . . . . . . . . . . Retrieved Matter . | . . . . . . . . . . . . . . . . . . Retrieved Components 9 | . . . . . . . . . 9 . . . . . . . . Parts Scanalyzed . | . . . . . . . . . . . . . . . . . . Part Schematics Acquired . | . . . . . . . . . . . . . . . . . . Parts Damaged . | . . . . . . . . . . . . . . . . . . Bothacking | -11 -10 -10 -10 -9 -8 -8 -7 -7 -7 -6 -6 -5 -5 -4 -3 -2 -2 ------------ Run | Yrd Mat Min Exi Min Mat Gar Fac Gar Fac Fac Gar Fac Gar Fac Res Res Gar Used RIF Installer 5 | . . . . . . 2 . 1 . . 1 . 1 . . . . Coupler Efficiency 1 | . . . . . . . . . . . . . 1 . . . . Code Merge 1 | . . . . . . . . . . . 1 . . . . . . Alert ID Control 1 | . . . . . . . . 1 . . . . . . . . . Structural Interface 1 | . . . . . . 1 . . . . . . . . . . . Robots Hacked 106 | . . . . . . 12 3 21 34 . 6 9 14 7 . . . Non-combat 20 | . . . . . . . 1 1 14 . . 3 . 1 . . . Combat 86 | . . . . . . 12 2 20 20 . 6 6 14 6 . . . Robot Hacks Applied 117 | . . . . . . 12 3 21 40 . 6 10 16 9 . . . parse_system 2 | . . . . . . . . 1 1 . . . . . . . . generate_anomaly 1 | . . . . . . . . . 1 . . . . . . . . find_chute 1 | . . . . . . . . . . . . 1 . . . . . drop_inventory 4 | . . . . . . . 1 . 3 . . . . . . . . ignore_parts 2 | . . . . . . . . . 2 . . . . . . . . purge_threat 7 | . . . . . . . . . 5 . . . . 2 . . . map_route 3 | . . . . . . . . . 2 . . 1 . . . . . amplify_resonance 15 | . . . . . . . . 1 4 . 1 2 5 2 . . . reboot_system 2 | . . . . . . 1 . . 1 . . . . . . . . go_dormant 2 | . . . . . . . . . 2 . . . . . . . . overwrite_iff 14 | . . . . . . 1 . 4 2 . 3 1 3 . . . . formatsys_low 6 | . . . . . . . . . 5 . . . . 1 . . . formatsys_high 58 | . . . . . . 10 2 15 12 . 2 5 8 4 . . . Relay Couplers Released 100 | . . . . . . 20 . 27 6 . 18 . 22 4 . . 3 Machine Destruction 90 | . . . . . . 20 . 27 3 . 15 . 22 . . . 3 Programmers 10 | . . . . . . . . . 3 . 3 . . 4 . . . Attached 64 | . . . . . . 8 2 10 17 . 6 5 9 7 . . . Merged Code Value 202 | . . . . . . . . . . . 57 11 102 32 . . . Fabnet Peak Effective % . | . . . . . . . . . . . . . . . . . . Robots Rewired 11 | . . . . . . . . 7 . . 1 1 2 . . . . Allies Hacked . | . . . . . . . . . . . . . . . . . . Hacks Repelled . | . . . . . . . . . . . . . . . . . . Allies | -11 -10 -10 -10 -9 -8 -8 -7 -7 -7 -6 -6 -5 -5 -4 -3 -2 -2 -------- Run | Yrd Mat Min Exi Min Mat Gar Fac Gar Fac Fac Gar Fac Gar Fac Res Res Gar Total Allies 95 | . . 1 . . . 13 2 26 19 . 7 7 14 6 . . . Largest Group 9 | . . 1 1 . . 6 7 8 9 1 2 5 9 9 . . . Highest-Rated Group 647 | . . 31 31 . . 119 110 206 212 23 144 190 647 641 . . . Highest-Rated Ally 148 | . . 31 31 . . 31 18 43 40 23 119 49 148 148 . . . Total Orders 54 | . . . . . . 2 . 5 5 . . . 41 1 . . . STAY 14 | . . . . . . 1 . 2 1 . . . 9 1 . . . ROAM 11 | . . . . . . . . . . . . . 11 . . . . FOLLOW 21 | . . . . . . 1 . 3 . . . . 17 . . . . GUARD 4 | . . . . . . . . . . . . . 4 . . . . AID 4 | . . . . . . . . . 4 . . . . . . . . Ally Attacks 584 | . . . . . . 44 32 126 106 . 43 11 121 101 . . . Total Damage 15067 | . . . . . . 825 624 2279 3318 . 689 281 3848 3203 . . . Kills 91 | . . . . . . 3 5 19 18 . 7 4 20 15 . . . Allies Corrupted 1 | . . . . . . . . . . . 1 . . . . . . Allies Melted 1 | . . . . . . . . . . . . . . 1 . . . Intel | -11 -10 -10 -10 -9 -8 -8 -7 -7 -7 -6 -6 -5 -5 -4 -3 -2 -2 ------- Run | Yrd Mat Min Exi Min Mat Gar Fac Gar Fac Fac Gar Fac Gar Fac Res Res Gar Robot Analysis Total 1 | . . . . . 1 . . . . . . . . . . . . Derelict Logs Recovered 1 | . . 1 . . . . . . . . . . . . . . . Drone Launches . | . . . . . . . . . . . . . . . . . . Drone Recoveries . | . . . . . . . . . . . . . . . . . . Exploration | -11 -10 -10 -10 -9 -8 -8 -7 -7 -7 -6 -6 -5 -5 -4 -3 -2 -2 ------------- Run | Yrd Mat Min Exi Min Mat Gar Fac Gar Fac Fac Gar Fac Gar Fac Res Res Gar Turns Passed 17250 | 57 579 182 432 15 1824 2665 1070 1986 2812 80 1662 410 1843 849 241 419 124 Spaces Moved 8382 | 31 302 112 266 10 949 1049 450 879 1399 49 648 197 884 439 320 258 140 Core 214 | 5 . . . . . . . . . . 9 . . 69 13 15 103 Treads 5772 | 26 302 112 266 10 205 162 355 879 1399 49 556 197 884 370 . . . Legs 83 | . . . . . . . . . . . 83 . . . . . . Wheels 2006 | . . . . . 744 887 95 . . . . . . . . 243 37 Hover 143 | . . . . . . . . . . . . . . . 143 . . Flight 164 | . . . . . . . . . . . . . . . 164 . . Fastest Speed 37 | 50 160 160 160 160 125 155 162 160 160 160 160 175 165 50 37 50 50 Average Speed 169 | 142 160 160 160 160 149 218 228 175 160 160 213 175 165 155 62 104 69 Slowest Speed 1650 | 160 160 160 160 160 240 260 245 400 160 160 1650 175 175 270 90 145 130 Overloaded Moves . | . . . . . . . . . . . . . . . . . . Propulsion Burnouts . | . . . . . . . . . . . . . . . . . . Robots Hopped 6 | . . . . . . . . . . . . . . . 6 . . Cave-ins Triggered 1 | . . . . . . . . . . . 1 . . . . . . Exploration Rate (%) 42 | 4 74 36 66 9 83 99 13 95 42 2 78 9 94 16 13 7 24 Regions Visited 17 Branch Regions 3 Pre-discovered Areas 3 | . . 1 1 1 . . . . . . . . . . . . . Known Exits Taken 9 | . 1 . 1 . 1 . 1 . 1 1 . 1 . 1 . 1 . Unknown Exits Taken 4 | 1 . 1 . 1 . . . . . . . . . . 1 . . Scrap Searched . | . . . . . . . . . . . . . . . . . . Spaces Dug 2 | . . . . . . . . . . . . . . . 2 . . Terrain Destroyed 1019 | . 26 19 . . 42 278 . 123 267 . 70 2 55 53 51 13 20 Melee . | . . . . . . . . . . . . . . . . . . Projectile 100 | . 1 . . . 42 4 . 6 16 . 7 2 7 4 3 8 . AOE 919 | . 25 19 . . . 274 . 117 251 . 63 . 48 49 48 5 20 Terrain Rammed . | . . . . . . . . . . . . . . . . . . Walls Destroyed . | . . . . . . . . . . . . . . . . . . Machines Disabled . | . . . . . . . . . . . . . . . . . . Actions | -11 -10 -10 -10 -9 -8 -8 -7 -7 -7 -6 -6 -5 -5 -4 -3 -2 -2 --------- Run | Yrd Mat Min Exi Min Mat Gar Fac Gar Fac Fac Gar Fac Gar Fac Res Res Gar Total 10762 | 39 367 113 275 9 1353 1368 486 1195 1805 50 807 248 1195 559 345 382 166 Wait 964 | . 14 . . . 322 68 1 57 150 . . 9 206 30 16 82 9 Move 8359 | 30 301 111 265 9 949 1048 450 878 1398 49 647 197 883 439 307 258 140 Hop 6 | . . . . . . . . . . . . . . . 6 . . Pick Up 196 | 1 12 . 2 . 24 40 5 39 20 . 26 . 14 8 1 3 1 Fast Attach 100 | 7 3 . . . 10 9 6 10 11 . 14 3 5 4 5 13 . Attach 134 | . . . 1 . 15 31 2 22 20 1 11 5 4 14 1 5 2 Detach 41 | . . . . . 8 13 1 9 3 . 1 2 1 . . . 3 Swap 90 | . 3 . 2 . 8 5 3 14 35 . 9 2 5 3 1 . . Drop 186 | . 8 . 5 . 17 38 12 38 21 . 17 6 9 9 . 1 5 Fire 552 | 1 26 2 . . . 54 4 84 145 . 76 24 56 49 8 18 5 Melee 73 | . . . . . . 14 2 37 . . 6 . 11 3 . . . Ram 1 | . . . . . . . . . . . . . . . . . 1 Kick . | . . . . . . . . . . . . . . . . . . Crush 2 | . . . . . . . . 1 1 . . . . . . . . Escape Stasis 44 | . . . . . . 40 . 4 . . . . . . . . . Rewire 4 | . . . . . . . . 2 1 . . . 1 . . . . Trap . | . . . . . . . . . . . . . . . . . . Miscellaneous 10 | . . . . . . 8 . . . . . . . . . 2 . Route ------- -11/Scrapyard -10/Materials (discovered 4 exits: [*Mat x2] / *Min x2) -10/Mines -10/Exiles (discovered 2 exits: *Min x2) -9/Mines -8/Materials (discovered 4 exits: *Fac x3 / Gar) -8/Garrison (discovered 4 exits: *Fac x3 / [*Mat]) -7/Factory -7/Garrison (discovered 3 exits: *Fac x3) -7/Factory (discovered 5 exits: *Fac x2 / Sto / *Low x2) -6/Factory -6/Garrison (discovered 2 exits: *Fac x2) -5/Factory -5/Garrison (discovered 3 exits: *Fac x3) -4/Factory -3/Research -2/Research -2/Garrison History --------- Turn | Location | Event 13 | -11/Scrapyard | Discovered new exit (range 16) 58 | -11/Scrapyard | Entered Materials 262 | -10/Materials | Discovered new exit (range 5) 307 | -10/Materials | Build established: Mutant 507 | -10/Materials | Discovered new exit (range 13) 515 | -10/Materials | Identified exit to Mines 637 | -10/Materials | Entered Mines 714 | -10/Mines | Escorted by a lone wolf Derelict 734 | -10/Mines | Learned location of Storage (-7) 813 | -10/Mines | Deemed a non-threat by the Exiles lab entrance 813 | -10/Mines | Discovered new exit (range 5) 819 | -10/Mines | Entered Exiles 819 | -10/Exiles | Accompanied by 1 ally 820 | -10/Exiles | Identified exit to Mines 859 | -10/Exiles | Met 8R-AWN 885 | -10/Exiles | Met EX-HEX 1003 | -10/Exiles | Met EX-BIN 1021 | -10/Exiles | Aligned with FarCom system 1023 | -10/Exiles | Given EX-Vault access code 1061 | -10/Exiles | Opened EX-Vault 1075 | -10/Exiles | Found AWS/Gauss 1086 | -10/Exiles | Found AWS/Thermal 1119 | -10/Exiles | Warned to stay clear of 0b10 Research branches 1164 | -10/Exiles | Met EX-DEC 1175 | -10/Exiles | Learned location of Zion (-6) 1251 | -10/Exiles | Stole two prototypes: AWS/Gauss, AWS/Thermal 1251 | -10/Exiles | Entered Mines 1251 | -9/Mines | Discovered new exit (range 7) 1266 | -9/Mines | Entered Materials 1266 | -8/Materials | Evolved 4 slots: Utility x4 2070 | -8/Materials | Discovered new exit (range 15) 2268 | -8/Materials | Repaired Hrd. Medium Armor Plating 2344 | -8/Materials | Discovered new exit (range 5) 2450 | -8/Materials | Build established: Scavenger-Mutant 2780 | -8/Materials | Discovered new exit (range 5) 2787 | -8/Materials | Identified exit to Factory 3090 | -8/Materials | Identified exit to Garrison 3090 | -8/Materials | Entered Garrison 3165 | -8/Garrison | Triggered checkpoint 3209 | -8/Garrison | Garrison Relay disabled 3440 | -8/Garrison | Phase Generator disabled 3487 | -8/Garrison | Garrison Relay disabled 3688 | -8/Garrison | Triggered checkpoint 3784 | -8/Garrison | Discovered exit to Factory (range 13) 3843 | -8/Garrison | Build established: Mutant 3994 | -8/Garrison | Triggered checkpoint 4023 | -8/Garrison | Learned Factory security intel 4052 | -8/Garrison | Garrison Relay disabled 4284 | -8/Garrison | Triggered checkpoint 4358 | -8/Garrison | Triggered checkpoint 4362 | -8/Garrison | Triggered checkpoint 4387 | -8/Garrison | Destroyed 7 combat bots 4515 | -8/Garrison | Discovered exit to Factory (range 8) 4556 | -8/Garrison | Installed Relay Interface Framework 4678 | -8/Garrison | Triggered checkpoint 4714 | -8/Garrison | Triggered checkpoint 4746 | -8/Garrison | Discovered new exit (range 3) 4785 | -8/Garrison | Garrison Relay disabled 4866 | -8/Garrison | Build established: Bothacker-Mutant 5090 | -8/Garrison | Rescued a captive Derelict 5099 | -8/Garrison | Rescued a captive Derelict 5242 | -8/Garrison | Spotted B-75 Beast 5276 | -8/Garrison | Destroyed B-75 Beast 5313 | -8/Garrison | Expanded RIF knowledge: Structural Interface 5365 | -8/Garrison | Lost 4 allies 5435 | -8/Garrison | Found Launcher Loader 5560 | -8/Garrison | Triggered checkpoint 5594 | -8/Garrison | Garrison Relay disabled 5662 | -8/Garrison | Discovered exit to Factory (range 14) 5755 | -8/Garrison | Entered Factory 5755 | -7/Factory | Accompanied by 6 allies 5755 | -7/Factory | Evolved 2 slots: Propulsion x2 5757 | -7/Factory | FarCom data flow suspended 6825 | -7/Factory | Identified exit to Garrison 6825 | -7/Factory | Entered Garrison 6825 | -7/Garrison | Accompanied by 5 allies 6940 | -7/Garrison | Phase Generator disabled 6971 | -7/Garrison | Triggered checkpoint 6973 | -7/Garrison | Spotted B-75 Beast 6994 | -7/Garrison | Allies destroyed B-75 Beast 7002 | -7/Garrison | Garrison Relay disabled 7022 | -7/Garrison | Lost 8 allies 7221 | -7/Garrison | Triggered checkpoint 7246 | -7/Garrison | Triggered checkpoint 7303 | -7/Garrison | Triggered checkpoint 7441 | -7/Garrison | Triggered checkpoint 7512 | -7/Garrison | Garrison Relay disabled 7519 | -7/Garrison | Lost 5 allies 7571 | -7/Garrison | Discovered new exit (range 8) 7800 | -7/Garrison | Discovered new exit (range 14) 7939 | -7/Garrison | Triggered checkpoint 7996 | -7/Garrison | Garrison Relay disabled 7996 | -7/Garrison | Garrison Relay disabled 8035 | -7/Garrison | Garrison Relay disabled 8037 | -7/Garrison | Lost 4 allies 8044 | -7/Garrison | Lost 3 parts (2n1u) 8123 | -7/Garrison | Garrison Relay disabled 8297 | -7/Garrison | Triggered checkpoint 8323 | -7/Garrison | Triggered checkpoint 8371 | -7/Garrison | Expanded RIF knowledge: Alert ID Control 8407 | -7/Garrison | Garrison Relay disabled 8738 | -7/Garrison | Discovered new exit (range 13) 8799 | -7/Garrison | Identified exit to Factory 8811 | -7/Garrison | Entered Factory 8811 | -7/Factory | Accompanied by 7 allies 8811 | -7/Factory | Discovered new exit (range 11) 8827 | -7/Factory | Identified exit to Factory 9067 | -7/Factory | Lost 4 allies 9439 | -7/Factory | Discovered new exit (range 5) 9550 | -7/Factory | Repaired Remote Datajack 9969 | -7/Factory | Identified exit to Storage 9969 | -7/Factory | Identified exit to Lower Caves 9998 | -7/Factory | Cargo convoy interrupted 10023 | -7/Factory | Found Prototype Launcher 10023 | -7/Factory | Identified Mni. Smartbomb Launcher 10034 | -7/Factory | Found Prototype Processor 10034 | -7/Factory | Identified Exp. Melee Analysis Suite 10039 | -7/Factory | Lost 6 allies 10042 | -7/Factory | Found Mni. Smartbomb Launcher 10048 | -7/Factory | Found Mni. Smartbomb Launcher 10060 | -7/Factory | P-70 Sage assimilated allied Commando 4a 10168 | -7/Factory | Lost 4 allies 10308 | -7/Factory | Repaired Imp. Heavy Treads 10578 | -7/Factory | Garrison activated, responded to threat 10811 | -7/Factory | First assault squad dispatched 11585 | -7/Factory | Discovered exit to Factory (range 12) 11590 | -7/Factory | Destroyed 7 combat bots 11623 | -7/Factory | Entered another Factory area 11623 | -6/Factory | Accompanied by 1 ally 11623 | -6/Factory | Evolved 2 slots: Utility x2 11703 | -6/Factory | Identified exit to Garrison 11703 | -6/Factory | Entered Garrison 11703 | -6/Garrison | Accompanied by 1 ally 11741 | -6/Garrison | Triggered checkpoint 11855 | -6/Garrison | Expanded RIF knowledge: Code Merge 11905 | -6/Garrison | Garrison Relay disabled 11985 | -6/Garrison | Spotted B-75 Beast 12037 | -6/Garrison | Destroyed 7 combat bots 12047 | -6/Garrison | Crushed by falling debris 12058 | -6/Garrison | Destroyed B-75 Beast 12084 | -6/Garrison | Lost 8 parts (3n3u2w) 12187 | -6/Garrison | Triggered checkpoint 12196 | -6/Garrison | Triggered checkpoint 12204 | -6/Garrison | Core integrity fell below 50% 12242 | -6/Garrison | Lost 6 parts (1p2n1u2w) 12513 | -6/Garrison | Triggered checkpoint 12600 | -6/Garrison | Found Fusion Bomb Launcher 12630 | -6/Garrison | Found Enh. Force Lance 12674 | -6/Garrison | Discovered new exit (range 14) 12711 | -6/Garrison | Rescued a captive Derelict 12720 | -6/Garrison | Identified exit to Factory 12774 | -6/Garrison | Build established: Botlord-Mutant 12782 | -6/Garrison | Garrison Relay disabled 12926 | -6/Garrison | Spotted Striker 12926 | -6/Garrison | Spotted Striker 12933 | -6/Garrison | Destroyed Striker 12975 | -6/Garrison | Destroyed Striker 12994 | -6/Garrison | Rewired Executioner 13043 | -6/Garrison | Garrison Relay disabled 13073 | -6/Garrison | Discovered exit to Factory (range 12) 13077 | -6/Garrison | Triggered checkpoint 13093 | -6/Garrison | Garrison Relay disabled 13220 | -6/Garrison | Found Relay Coupler [Proto] 13223 | -6/Garrison | Found Relay Coupler [Proto] 13225 | -6/Garrison | Found Relay Coupler [Proto] 13228 | -6/Garrison | Found Relay Coupler [Proto] 13283 | -6/Garrison | Core integrity fell below 20% 13365 | -6/Garrison | Entered Factory 13365 | -5/Factory | Accompanied by 1 ally 13365 | -5/Factory | Evolved 2 slots: Utility x2 13670 | -5/Factory | Found Prototype Launcher 13670 | -5/Factory | Identified Rocket Array 13729 | -5/Factory | Garrison activated, responded to threat 13775 | -5/Factory | Identified exit to Garrison 13775 | -5/Factory | Entered Garrison 13775 | -5/Garrison | Accompanied by 4 allies 13821 | -5/Garrison | Garrison Relay disabled 13847 | -5/Garrison | Triggered checkpoint 13873 | -5/Garrison | Garrison Relay disabled 14089 | -5/Garrison | Spotted B-90 Cyclops 14148 | -5/Garrison | Spotted B-86 Titan 14153 | -5/Garrison | Assimilated Cyclops 6a with formatsys_high 14158 | -5/Garrison | Rewired B-90 Cyclops 14159 | -5/Garrison | Rewired B-75 Beast 14161 | -5/Garrison | Destroyed B-86 Titan 14241 | -5/Garrison | Triggered checkpoint 14248 | -5/Garrison | Triggered checkpoint 14341 | -5/Garrison | Triggered checkpoint 14349 | -5/Garrison | Triggered checkpoint 14431 | -5/Garrison | Garrison Relay disabled 14447 | -5/Garrison | Triggered checkpoint 14467 | -5/Garrison | Spotted Striker 14469 | -5/Garrison | Spotted Striker 14491 | -5/Garrison | Assimilated Striker with formatsys_high 14496 | -5/Garrison | Allies destroyed Striker 14522 | -5/Garrison | Lost 3 allies 14555 | -5/Garrison | Discovered new exit (range 8) 14569 | -5/Garrison | Expanded RIF knowledge: Coupler Efficiency 14585 | -5/Garrison | Identified exit to Factory 14788 | -5/Garrison | Phase Generator disabled 14965 | -5/Garrison | Triggered checkpoint 14972 | -5/Garrison | Garrison Relay disabled 15101 | -5/Garrison | Discovered exit to Factory (range 14) 15130 | -5/Garrison | Rescued a captive Derelict 15353 | -5/Garrison | Discovered exit to Factory (range 7) 15391 | -5/Garrison | Triggered checkpoint 15618 | -5/Garrison | Entered Factory 15618 | -4/Factory | Accompanied by 8 allies 15618 | -4/Factory | Evolved 2 slots: Utility x2 15915 | -4/Factory | Garrison activated, responded to threat 15995 | -4/Factory | Found Prototype Hackware 16015 | -4/Factory | Garrison activated, responded to threat 16087 | -4/Factory | Lost 6 allies 16280 | -4/Factory | Identified Exp. System Shield 16314 | -4/Factory | Lost 5 parts (2n2u1w) 16318 | -4/Factory | Destroyed 10 combat bots 16368 | -4/Factory | First assault squad dispatched 16431 | -4/Factory | Core integrity fell below 50% 16453 | -4/Factory | Discovered new exit (range 19) 16463 | -4/Factory | Core integrity fell below 20% 16466 | -4/Factory | Identified exit to Research 16467 | -4/Factory | Entered Research 16467 | -3/Research | Evolved 2 slots: Power x1, Utility x1 16490 | -3/Research | Lost 12 parts (2n8u2w) 16628 | -3/Research | Lost 5 parts (1n3u1w) 16693 | -3/Research | Core integrity fell below 50% 16698 | -3/Research | Build established: Mutant 16703 | -3/Research | Discovered new exit (range 10) 16708 | -3/Research | Entered another Research area 16708 | -2/Research | Evolved 2 slots: Utility x2 16738 | -2/Research | Lost 5 parts (3n2u) 17005 | -2/Research | Build established: Infiltrator-Mutant 17127 | -2/Research | Identified exit to Garrison 17127 | -2/Research | Entered Garrison 17153 | -2/Garrison | Triggered checkpoint 17192 | -2/Garrison | Core integrity fell below 50% 17200 | -2/Garrison | Spotted Striker 17246 | -2/Garrison | Core integrity fell below 20% 17251 | -2/Garrison | Destroyed by S-43 Plague with Heavy Machine Gun Last Messages --------------- data. Garrison Door activated. 17213_ Enh. Optical Array destroyed. 17213_ Penetrated by Slug. 17213_ Slug penetrates Wall. 17216_ Slug penetrates Reinforced Barrier. 17222_ Penetrated by Slug. 17222_ Slug penetrates Reinforced Barrier. 17225_ Y-72 Warden misfires. 17225_ Slug penetrates Reinforced Barrier. 17228_ Y-72 Warden misfires. 17235_ Y-72 Warden shuts down. 17236_ Y-72 Warden system terminally corrupted. 17238_ Acquired 105 matter. 17240_ Graphene Brace destroyed. 17241_ Slug penetrates Wall. 17241_ Penetrated by Slug. 17241_ Slug penetrates X-87 Electro. 17243_ Slammed into X-87 Electro. 17244_ System corrupted: Matter fused (-8). Map ----- +----------------------------------------------------+ | ??????????????????????????????????????? | | ??????????????????????????????????????? | | ??????????????????????????????????????? | | ??????????????????????????????????????? | | ??????????????????????????????????????? | | ??????????????????????????????????????? | | ??????????????????????????????????????? | | ??????????????????????????????????????? | | ??????????????????????????????????????? | | ??????????????????????????????????????? | | ??????????????????????????????????????? | | ??????????????????????????????????????? | | ??????????????????????????????????????? | | ??????????????????????????????????????? | | ??????????????????????????????????????? | | ??????????????????????????????????????? | | ??????????????????????????????????????? | | ??????????????????????????????????????? | | ??????????????????????????????????????? | | ??????????????????????????????????????? | | ??????????????????????????????????????? | | ??????????????????????????????????????? | | ??????????????????????????????????????? | | #############################?????????? | | + #?????????? | | + s @ #??#####??? | | #### #################### #?"""""#??? | | ???# #??????????????????# #? "" "#??? | | ???# ##?????????????????# #" "" "#??? | | ?### ##????????????????# #" "" "#??? | | ?# ] #????????????????# + #??? | | ?# ##????????????????# #" "" "#??? | | ?# ##????????????????# #" "" "#??? | | ?# # #????????????????# #? "" "#??? | | ### #????????????????# #?"""""#??? | | ## # #????????????????# #??#####??? | | ## ###????????????????# #?????????? | | ## #??????????????????# #?????????? | | ## #??????????????????# #?????????? | | ## ############???????# #?????????? | | ## + #???????# #???##????? | | ## ########## #???????# #?? #????? | | ## #???????##+##??????# #? #????? | | ##! #???????# #??????# ## ##????? | | ##!!######### ########++# #????? | | ! #????? | | # #????? | | ####/+################## ######????? | | #??# #????????????????# #?????????? | | #??" ??????????????###[ #?????????? | +----------------------------------------------------+ Best States ------------- Heat Dissipation 49 Energy Generation 41 Energy Capacity 610 Matter Stores 300 Matter Capacity 450 Sight Range 22 Robot Scan Range 15 Terrain Scan Range 20 Terrain Scan Density 10 ECM Strength 2 Cloak Strength 3 Corruption Block 8 Armor Coverage 900 Evasion (%) 62 Targeting Accuracy 20 Core Analysis 6 Recoil Reduction 4 Defensive Hacking 10 Relay Coupler Types 10 Relay Coupler Value 339 Authchip Count 3 Item Schematics ----------------- None Robot Schematics ------------------ None Fabricated ------------ Nothing Alien Tech Used ----------------- None Achievements -------------- None Challenges ------------ None Game ------ Seed MomentumDecoyStripper Manual? 0 Play Time 02:46:33 Cumulative 159.3 hours Start 2024.05.05 @ 16:20:13 End 2024.05.06 @ 12:28:30 Sessions 3 Manual Loads 0 Difficulty Rogue Special Mode None Game No. 155 Rogue 150 Adventurer 5 Explorer 0 Win Type - Total 3 Types 2/0/0/1/0/0/0/0/0 Lore% 53 Gallery% 72 Achievement% 54 Wizard Run 0 Options --------- Layout 1 ASCII 0 Keyboard 0 Movement Mouse Keybinds 0 Fullscreen 1 Font 24/Terminus Map View 50x35 Zoom Use 0% Tactical HUD 1 Map Filters NONE Filters NONE Steam 1 RUN: 5bbe7188-3eaf-49d0-8921-f5c9494ce76b